bitfinex/quotes_SOLUSD_20250403
["timestamp","ask_amount","ask_price","bid_price","bid_amount"]
[1743644016169,90.78052314,119.53,119.47,8.3703]
[1743644016565,82.13,119.53,119.47,8.3703]
[1743644016776,82.13,119.53,119.47,29.296]
[1743644017286,90.4961,119.53,119.47,8.3703]
[1743644017470,125.41673066,119.53,119.47,8.3703]
[1743644017885,125.41673066,119.53,119.46,326.14]
[1743644017886,82.52648471,119.52,119.46,326.14]
[1743644018181,34.92063066,119.49,119.44,0.03]
[1743644018384,82.1,119.5,119.44,8.4023]
[1743644018571,117.02063066,119.5,119.44,8.4023]
[1743644018887,35.2049538,119.49,119.44,8.4023]
[1743644019483,8.65342314,119.49,119.44,0.03]
[1743644020585,82.1,119.5,119.44,26.03]
[1743644020878,0.28432314,119.49,119.44,0.03]
[1743644021086,35.2049538,119.49,119.44,0.03]
[1743644021487,0.28432314,119.49,119.44,26.03]
[1743644021660,35.2049538,119.47,119.44,0.03]
[1743644022365,57.55846423,119.45,119.44,0.03]
[1743644022564,64.93186423,119.45,119.44,0.03]
[1743644023691,73.30356423,119.45,119.44,0.03]
[1743644024584,26.28432314,119.41,119.35,8.3787]
[1743644024785,26.28432314,119.41,119.32,385.42490124]
[1743644024786,0.28432314,119.39,119.34,8.3791]
[1743644025089,35.2049538,119.39,119.34,8.3791]
[1743644025265,117.02063066,119.4,119.34,8.3791]
[1743644025791,90.4754,119.4,119.33,8.3801]
[1743644026088,82.1,119.4,119.33,29.3304]
[1743644026279,125.39583066,119.4,119.33,29.3304]
[1743644026597,125.39583066,119.4,119.33,8.3801]
[1743644027070,90.4752,119.4,119.34,0.03]
[1743644027690,125.39583066,119.4,119.34,0.03]
[1743644028691,8.66042314,119.39,119.34,0.03]
[1743644029376,0.28432314,119.39,119.34,0.03]
[1743644029569,82.1,119.4,119.34,0.03]
[1743644030398,117.02063066,119.4,119.34,0.03]
[1743644030771,125.39593066,119.4,119.34,8.4094]
[1743644030974,170.82063066,119.43,119.35,18.64964886]
[1743644031179,135.9,119.43,119.35,18.64964886]
[1743644031391,8.374,119.42,119.35,18.64964886]
[1743644031591,0.28432314,119.41,119.34,8.4094]
[1743644031991,43.29463066,119.42,119.34,8.4094]
[1743644031992,8.374,119.42,119.34,8.4094]
[1743644032369,8.374,119.42,119.35,18.64964886]
[1743644033204,8.374,119.42,119.36,8.378]
[1743644034408,8.374,119.42,119.35,27.02834886]
[1743644034584,43.29463066,119.42,119.35,8.3787]
[1743644035275,0.28432314,119.41,119.34,0.03]
[1743644035482,34.92063066,119.4,119.34,0.03]
[1743644035881,0.28432314,119.39,119.34,0.03]
[1743644036281,8.3766,119.38,119.34,0.03]
[1743644036490,8.66042314,119.39,119.34,0.03]
[1743644037907,170.82063066,119.43,119.34,18.67964886]
[1743644038207,0.28432314,119.42,119.34,18.67964886]
[1743644038991,0.14216157,119.42,119.34,18.67964886]
[1743644039281,0.28432314,119.42,119.34,18.67964886]
[1743644039577,82.163,119.44,119.35,9.38648471]
[1743644039807,0.063,119.44,119.39,8.3759]
[1743644040007,0.063,119.44,119.38,8.3762]
[1743644040199,54.05976423,119.44,119.35,109.50964886]
[1743644040393,0.28432314,119.42,119.35,8.96]
[1743644040793,82.1,119.43,119.35,27.60964886]
[1743644040992,0.28432314,119.42,119.35,8.96]
[1743644041708,8.3745,119.41,119.35,17.3381]
[1743644042507,0.28432314,119.42,119.35,17.3381]
[1743644042888,0.063,119.44,119.36,0.42648471]
[1743644043102,35.2679538,119.44,119.36,18.64964886]
[1743644043707,43.49819223,119.44,119.37,8.3773]
[1743644043898,43.49819223,119.44,119.36,8.3776]
[1743644043899,0.14216157,119.42,119.36,8.3776]
[1743644044224,0.28432314,119.42,119.36,8.3776]
[1743644045098,82.163,119.44,119.36,29.3226]
[1743644045287,0.063,119.44,119.37,18.64964886]
[1743644045902,0.063,119.44,119.38,8.3766]
[1743644046792,19.13913357,119.44,119.38,8.3766]
[1743644046993,54.05976423,119.44,119.38,8.3766]
[1743644047995,35.2679538,119.44,119.36,29.323]
[1743644048525,43.6403538,119.44,119.36,29.323]
[1743644049411,26.0,119.4,119.36,8.378]
[1743644049611,61.2049538,119.4,119.35,8.3787]
[1743644050713,61.2049538,119.4,119.34,326.55]
[1743644050714,38.6692538,119.38,119.34,326.55]
[1743644051616,47.0459538,119.38,119.34,326.55]
[1743644052316,26.0,119.39,119.34,334.9292]
[1743644052914,60.92063066,119.39,119.34,334.9292]
[1743644053219,60.92063066,119.39,119.34,0.03]
[1743644053220,136.09676423,119.38,119.34,0.03]
[1743644053743,82.1,119.41,119.34,0.03]
[1743644053913,82.1,119.41,119.34,18.67964886]
[1743644054105,82.1,119.41,119.37,26.0]
[1743644054729,0.063,119.44,119.38,25.76354886]
[1743644054926,0.063,119.44,119.39,8.96]
[1743644055370,0.063,119.44,119.43,26.0]
[1743644055735,0.063,119.44,119.43,34.3731]
[1743644056034,0.063,119.44,119.43,8.3731]
[1743644057224,0.063,119.44,119.43,27.02274886]
[1743644057426,0.063,119.44,119.43,53.02274886]
[1743644058155,0.063,119.44,119.4,0.14216157]
[1743644058156,0.063,119.44,119.4,8.3752]
[1743644058737,0.063,119.44,119.4,27.02484886]
[1743644059045,0.063,119.44,119.41,19.07613357]
[1743644059249,0.063,119.44,119.43,44.64964886]
[1743644059440,0.063,119.44,119.43,45.07613357]
[1743644059953,0.063,119.44,119.43,53.44923357]
[1743644060642,0.063,119.44,119.43,53.02274886]
[1743644061361,0.063,119.44,119.43,34.3731]
[1743644061732,0.063,119.44,119.43,8.3731]
[1743644063150,0.063,119.44,119.41,8.94]
[1743644063151,0.063,119.44,119.41,0.03]
[1743644064643,35.41011537,119.44,119.41,0.03]
[1743644065450,0.063,119.44,119.41,0.03]
[1743644066035,34.98363066,119.44,119.41,0.03]
[1743644066231,0.28432314,119.43,119.41,0.03]
[1743644066931,35.2049538,119.43,119.41,0.03]
[1743644067135,0.28432314,119.43,119.41,0.03]
[1743644067444,19.07613357,119.43,119.41,0.03]
[1743644067606,135.81244109,119.42,119.41,0.03]
[1743644067807,144.47056423,119.42,119.41,0.03]
[1743644069136,43.43659223,119.42,119.41,0.03]
[1743644069441,135.9,119.43,119.41,0.03]
[1743644069442,8.3733,119.43,119.41,0.03]
[1743644069932,0.14216157,119.43,119.41,0.03]
[1743644070138,0.28432314,119.43,119.41,0.03]
[1743644070315,8.51536157,119.43,119.41,0.03]
[1743644070715,35.06279223,119.42,119.41,0.03]
[1743644070917,35.2049538,119.42,119.41,0.03]
[1743644071151,43.29383066,119.43,119.41,0.03]
[1743644072240,19.13913357,119.44,119.41,0.03]
[1743644072241,0.063,119.44,119.41,0.03]
[1743644078840,0.063,119.44,119.41,26.03]
[1743644079948,0.063,119.44,119.41,34.4042]
[1743644081945,0.063,119.44,119.41,0.03]
[1743644082125,0.34732314,119.44,119.41,0.03]
[1743644082319,35.2679538,119.44,119.41,0.03]
[1743644082858,0.34732314,119.44,119.41,0.03]
[1743644083038,8.71992314,119.44,119.41,0.03]
[1743644083225,0.28432314,119.43,119.41,0.03]
[1743644083829,112.41305288,119.44,119.41,0.03]
[1743644084035,90.5356,119.44,119.41,0.03]
[1743644084732,82.163,119.44,119.41,0.03]
[1743644084932,8.4356,119.44,119.41,0.03]
[1743644085153,30.31305288,119.44,119.41,0.03]
[1743644085944,43.4400741,119.44,119.41,0.03]
[1743644086438,8.4356,119.44,119.41,0.03]
[1743644087144,0.063,119.44,119.41,0.03]
[1743644088456,0.063,119.44,119.43,8.3731]
[1743644088628,0.063,119.44,119.43,27.44923357]
[1743644089341,0.063,119.44,119.43,27.02274886]
[1743644089557,0.063,119.44,119.43,8.3731]
[1743644090560,0.063,119.44,119.42,8.3738]
[1743644091759,0.063,119.44,119.41,24.4124]
[1743644091960,0.063,119.44,119.41,17.3241]
[1743644093456,0.063,119.44,119.41,0.03]
[1743644093754,0.28432314,119.43,119.41,0.03]
[1743644095459,8.65742314,119.43,119.41,0.03]
[1743644096257,0.28432314,119.43,119.41,0.03]
[1743644096853,8.65742314,119.43,119.41,0.03]
[1743644097247,43.66189724,119.43,119.41,0.03]
[1743644098062,8.65742314,119.43,119.41,0.03]
[1743644098261,53.79628453,119.42,119.41,0.03]
[1743644098444,57.89230767,119.42,119.41,0.03]
[1743644099773,66.26610767,119.42,119.41,0.03]
[1743644100569,91.37610767,119.42,119.41,0.03]
[1743644100742,0.28432314,119.37,119.34,0.03]
[1743644101056,35.28879724,119.37,119.34,0.03]
[1743644101451,0.28432314,119.37,119.34,0.03]
[1743644103262,82.1,119.38,119.34,0.03]
[1743644103450,233.7685,119.41,119.34,0.03]
[1743644103759,0.28432314,119.38,119.34,0.03]
[1743644104839,82.1,119.39,119.34,0.03]
[1743644105860,7.3938,119.41,119.34,0.03]
[1743644106051,85.9117,119.42,119.36,26.0]
[1743644106248,85.9117,119.42,119.37,8.3773]
[1743644106461,94.2855,119.42,119.37,8.3773]
[1743644106846,82.1,119.42,119.37,8.3773]
[1743644107059,82.1,119.42,119.37,29.3205]
[1743644107747,82.1,119.42,119.37,40.2796]
[1743644107946,0.063,119.44,119.41,26.0]
[1743644108357,0.063,119.44,119.42,8.3738]
[1743644110457,0.063,119.44,119.39,0.42648471]
[1743644110458,0.063,119.44,119.39,8.3759]
[1743644110660,0.063,119.44,119.39,7.3759]
[1743644111351,0.063,119.44,119.39,28.3156]
[1743644113272,0.063,119.44,119.39,7.3759]
[1743644113683,0.063,119.44,119.39,28.3156]
[1743644114869,0.063,119.44,119.37,40.8518]
[1743644115082,0.063,119.44,119.38,8.3766]
[1743644116469,8.4354,119.44,119.38,8.3766]
[1743644116676,0.063,119.44,119.38,29.3181]
[1743644117781,0.34732314,119.44,119.38,8.3766]
[1743644118384,7.49312314,119.44,119.38,8.3766]
[1743644118758,7.49312314,119.44,119.37,0.03]
[1743644118759,35.24565669,119.42,119.37,0.03]
[1743644119068,0.28432314,119.4,119.37,0.03]
[1743644120400,8.65952314,119.4,119.37,0.03]
[1743644121278,12.46542314,119.4,119.37,0.03]
[1743644122768,35.24565669,119.38,119.37,0.03]
[1743644122974,54.03746712,119.38,119.37,0.03]
[1743644123286,0.28432314,119.39,119.37,0.03]
[1743644123459,19.07613357,119.39,119.37,0.03]
[1743644123664,53.75314398,119.38,119.37,0.03]
[1743644123869,94.2811,119.4,119.37,0.03]
[1743644124466,35.10349512,119.38,119.37,0.03]
[1743644125092,27.16841043,119.38,119.37,0.03]
[1743644125275,18.79181043,119.38,119.37,0.03]
[1743644125477,27.16841043,119.38,119.37,0.03]
[1743644125793,82.1,119.39,119.37,0.03]
[1743644126293,117.06133355,119.39,119.37,0.03]
[1743644126669,19.07613357,119.38,119.37,0.03]
[1743644127167,27.45273357,119.38,119.37,0.03]
[1743644127370,8.66092314,119.38,119.37,0.03]
[1743644128077,0.28432314,119.38,119.37,0.03]
[1743644128271,27.45273357,119.38,119.37,0.03]
[1743644129079,0.28432314,119.38,119.37,0.03]
[1743644129297,82.1,119.39,119.37,0.03]
[1743644131098,0.28432314,119.38,119.37,0.03]
[1743644131302,131.4412807,119.38,119.37,0.03]
[1743644131798,138.8845807,119.38,119.37,0.03]
[1743644132001,69.4361807,119.38,119.37,0.03]
[1743644132182,45.07613357,119.35,119.34,0.03]
[1743644132387,40.9646807,119.35,119.34,0.03]
[1743644133314,49.3433807,119.35,119.34,0.03]
[1743644133694,62.52320078,119.35,119.34,0.03]
[1743644133892,26.0,119.3,119.29,0.03]
[1743644134084,80.14450078,119.3,119.29,0.03]
[1743644135197,88.52670078,119.3,119.29,0.03]
[1743644135410,19.07613357,119.29,119.27,0.03]
[1743644135607,54.14450078,119.28,119.27,0.03]
[1743644136010,89.21286799,119.28,119.27,0.03]
[1743644137484,97.59646799,119.28,119.27,0.03]
[1743644138098,26.0,119.26,119.25,0.03]
[1743644138298,61.35269035,119.26,119.25,0.03]
[1743644139519,69.73769035,119.26,119.25,0.03]
[1743644139799,34.385,119.26,119.25,0.03]
[1743644140105,34.66932314,119.26,119.25,0.03]
[1743644141307,69.73769035,119.26,119.25,0.03]
[1743644141487,88.52950078,119.26,119.25,0.03]
[1743644143899,34.66932314,119.26,119.25,0.03]
[1743644144197,88.52950078,119.26,119.25,0.03]
[1743644144503,53.46113357,119.26,119.25,0.03]
[1743644145305,88.52950078,119.26,119.25,0.03]
[1743644147095,26.28432314,119.26,119.25,0.03]
[1743644147301,82.1,119.28,119.25,0.03]
[1743644148210,82.1,119.31,119.26,26.0]
[1743644148410,82.1,119.34,119.27,7.1085]
[1743644148588,117.16836721,119.34,119.27,7.1085]
[1743644149004,82.1,119.34,119.27,7.1085]
[1743644149314,125.54796721,119.34,119.27,7.1085]
[1743644149606,125.54796721,119.34,119.27,15.4926]
[1743644149607,8.3808,119.32,119.27,15.4926]
[1743644149999,43.44916721,119.32,119.27,15.4926]
[1743644150419,35.06836721,119.33,119.27,15.4926]
[1743644150619,82.1,119.34,119.27,15.4926]
[1743644151090,82.1,119.34,119.28,18.64964886]
[1743644151819,82.1,119.34,119.29,8.3829]
[1743644153502,90.4796,119.34,119.29,8.3829]
[1743644153901,90.4796,119.34,119.28,8.3836]
[1743644155212,82.1,119.34,119.28,8.3836]
[1743644155503,82.1,119.34,119.28,29.3426]
[1743644156920,90.4796,119.34,119.28,8.3836]
[1743644157709,90.5426,119.34,119.28,8.3836]
[1743644158507,35.06836721,119.32,119.26,326.86]
[1743644158709,136.24450078,119.31,119.26,326.86]
[1743644159097,82.1,119.31,119.26,335.2448]
[1743644160721,8.3822,119.3,119.26,335.2448]
[1743644161721,0.42648471,119.29,119.26,326.86]
[1743644161932,0.28432314,119.27,119.25,0.03]
[1743644162398,35.49485192,119.27,119.25,0.03]
[1743644162902,8.66932314,119.26,119.25,0.03]
[1743644163106,82.1,119.28,119.25,0.03]
[1743644163416,90.4837,119.28,119.25,0.03]
[1743644163596,0.28432314,119.27,119.25,0.03]
[1743644164333,54.14450078,119.27,119.25,0.03]
[1743644164697,27.17681043,119.26,119.25,0.03]
[1743644165109,8.66932314,119.26,119.25,0.03]
[1743644165315,0.28432314,119.27,119.25,0.03]
[1743644165626,82.1,119.28,119.25,0.03]
[1743644167102,56.08036721,119.34,119.25,0.03]
[1743644167103,94.0732,119.34,119.25,0.17216157]
[1743644167425,0.28432314,119.33,119.25,0.03]
[1743644167804,129.14156721,119.34,119.25,0.03]
[1743644168305,0.28432314,119.33,119.25,0.03]
[1743644168608,0.14216157,119.33,119.25,0.03]
[1743644169023,8.52256157,119.33,119.25,29.38]
[1743644169201,0.28432314,119.33,119.25,29.38]
[1743644169402,0.14216157,119.33,119.25,356.22]
[1743644169598,82.163,119.34,119.26,19.07613357]
[1743644170303,90.5424,119.34,119.26,19.07613357]
[1743644170732,82.163,119.34,119.26,19.07613357]
[1743644171445,90.5424,119.34,119.27,8.3843]
[1743644172040,82.163,119.34,119.27,29.3451]
[1743644172236,0.063,119.34,119.28,18.64964886]
[1743644172437,0.063,119.34,119.32,18.64964886]
[1743644173305,0.063,119.39,119.32,18.64964886]
[1743644173306,0.063,119.39,119.36,26.0]
[1743644173507,0.063,119.39,119.36,34.88]
[1743644175520,0.063,119.39,119.37,8.3773]
[1743644176335,0.063,119.39,119.38,25.82304886]
[1743644177335,0.063,119.44,119.41,26.0]
[1743644177542,0.063,119.44,119.42,8.3738]
[1743644181228,0.063,119.44,119.41,17.2542]
[1743644181534,0.063,119.44,119.38,46.76424886]
[1743644181739,0.28432314,119.42,119.37,0.03]
[1743644181925,35.06836721,119.42,119.37,0.03]
[1743644182327,8.71972314,119.44,119.37,0.03]
[1743644182546,43.78809035,119.44,119.37,0.03]
[1743644182947,8.71972314,119.44,119.37,0.03]
[1743644183242,0.063,119.44,119.37,18.67964886]
[1743644183818,43.50396721,119.44,119.37,18.67964886]
[1743644184027,35.35269035,119.43,119.37,0.03]
[1743644184443,8.3738,119.42,119.37,0.03]
[1743644184636,0.28432314,119.41,119.37,0.03]
[1743644184836,35.35269035,119.41,119.37,0.03]
[1743644185022,35.06836721,119.4,119.37,0.03]
[1743644185533,129.14566721,119.42,119.37,0.03]
[1743644185719,7.5158,119.41,119.37,0.03]
[1743644185924,19.07613357,119.4,119.37,0.03]
[1743644186244,136.24450078,119.4,119.37,0.03]
[1743644186543,8.3759,119.39,119.37,0.03]
[1743644188946,144.62000078,119.4,119.37,0.03]
[1743644189143,109.55163357,119.4,119.37,0.03]
[1743644189351,49.648,119.42,119.37,0.03]
[1743644189352,3.6035,119.42,119.37,0.03]
[1743644189525,89.6788,119.44,119.37,0.03]
[1743644190746,89.6788,119.44,119.37,8.4073]
[1743644190747,98.0514,119.44,119.37,8.4073]
[1743644191057,35.06836721,119.42,119.37,0.03]
[1743644191244,35.35269035,119.38,119.37,0.03]
[1743644191428,117.45269035,119.38,119.37,0.03]
[1743644191744,54.14450078,119.38,119.37,0.03]
[1743644192446,0.28432314,119.38,119.37,0.03]
[1743644192744,88.52110078,119.38,119.37,0.03]
[1743644193532,34.66092314,119.38,119.37,0.03]
[1743644193745,69.72929035,119.38,119.37,0.03]
[1743644193938,88.52110078,119.38,119.37,0.03]
[1743644194449,96.13630078,119.38,119.37,0.03]
[1743644195830,61.06793357,119.38,119.37,0.03]
[1743644196035,34.3766,119.38,119.37,0.03]
[1743644196235,34.66092314,119.38,119.37,0.03]
[1743644196745,69.72929035,119.38,119.37,0.03]
[1743644196946,43.72929035,119.38,119.37,0.03]
[1743644197247,3.7143,119.39,119.37,0.03]
[1743644197456,8.51776157,119.4,119.37,0.03]
[1743644197632,0.28432314,119.39,119.37,0.03]
[1743644197834,35.35269035,119.39,119.37,0.03]
[1743644198043,53.86017764,119.38,119.37,0.03]
[1743644198650,54.14450078,119.38,119.37,0.03]
[1743644198953,62.52110078,119.38,119.37,0.03]
[1743644199246,87.63110078,119.38,119.37,0.03]
[1743644199427,34.66092314,119.38,119.37,0.03]
[1743644200032,34.51876157,119.38,119.37,0.03]
[1743644200228,34.66092314,119.38,119.37,0.03]
[1743644200658,0.28432314,119.38,119.37,0.03]
[1743644202855,68.98145192,119.38,119.37,0.03]
[1743644203155,87.63110078,119.38,119.37,0.03]
[1743644203544,19.07613357,119.34,119.28,7.3344]
[1743644203738,54.14450078,119.34,119.27,334.9638]
[1743644204127,19.07613357,119.34,119.27,334.9638]
[1743644204335,26.28432314,119.37,119.28,18.64964886]
[1743644204634,61.35269035,119.37,119.29,8.86]
[1743644205047,34.66222314,119.37,119.3,8.3822]
[1743644205243,26.0,119.37,119.3,27.03184886]
[1743644205447,26.0,119.37,119.31,7.3593]
[1743644205639,39.00489035,119.39,119.31,7.3593]
[1743644205640,26.0,119.38,119.37,0.03]
[1743644205843,0.28432314,119.39,119.37,0.03]
[1743644208437,8.66022314,119.39,119.37,0.03]
[1743644208657,43.33706195,119.39,119.37,0.03]
[1743644208854,109.12524886,119.4,119.37,0.03]
[1743644209050,90.4756,119.4,119.37,0.03]
[1743644209558,125.54396721,119.4,119.37,0.03]
[1743644209859,90.4756,119.4,119.37,0.03]
[1743644210753,125.54396721,119.4,119.37,0.03]
[1743644211253,62.52110078,119.38,119.37,0.03]
[1743644211452,82.1,119.4,119.37,0.03]
[1743644213256,90.4752,119.4,119.37,0.03]
[1743644214060,125.54356721,119.4,119.37,0.03]
[1743644214257,90.4752,119.4,119.37,0.03]
[1743644216551,19.07613357,119.39,119.37,0.03]
[1743644217246,54.14450078,119.38,119.37,0.03]
[1743644217847,136.24450078,119.38,119.37,0.03]
[1743644218567,144.62110078,119.38,119.37,0.03]
[1743644219265,82.1,119.38,119.37,0.03]
[1743644220677,153.48110078,119.38,119.37,0.03]
[1743644220848,0.14216157,119.34,119.31,0.03]
[1743644221161,54.14450078,119.34,119.31,0.03]
[1743644221357,26.0,119.35,119.31,8.4114]
[1743644221670,120.80646721,119.37,119.31,8.4114]
[1743644222268,85.7381,119.37,119.31,8.4114]
[1743644222651,94.1157,119.37,119.31,0.03]
[1743644224874,82.1,119.37,119.31,0.03]
[1743644225064,0.063,119.4,119.32,18.933972]
[1743644225866,0.063,119.4,119.33,8.86]
[1743644226171,35.49485192,119.39,119.31,419.5698]
[1743644226364,35.06836721,119.37,119.31,337.6698]
[1743644226762,135.81801607,119.38,119.31,337.6698]
[1743644226963,8.3773,119.37,119.32,8.3808]
[1743644227669,82.1,119.38,119.32,8.3808]
[1743644227851,90.4766,119.38,119.32,8.3808]
[1743644228057,82.1,119.38,119.32,8.3808]
[1743644228666,90.4768,119.38,119.32,8.3808]
[1743644229877,90.5398,119.38,119.32,8.3808]
[1743644230077,26.0,119.35,119.32,8.3808]
[1743644230376,26.0,119.35,119.31,15.9379]
[1743644230573,26.0,119.32,119.31,0.03]
[1743644231176,26.0,119.33,119.31,0.03]
[1743644233372,26.0,119.32,119.31,0.03]
[1743644233576,26.0,119.33,119.31,0.03]
[1743644234284,26.0,119.34,119.31,0.03]
[1743644234485,26.0,119.33,119.31,8.4115]
[1743644235169,0.063,119.38,119.31,17.2515]
[1743644235502,0.063,119.38,119.35,4.09798471]
[1743644235667,0.063,119.38,119.36,27.48964886]
[1743644236271,0.063,119.4,119.37,0.42648471]
[1743644236596,0.063,119.4,119.39,8.3759]
[1743644238675,0.063,119.4,119.39,27.02554886]
[1743644238874,0.063,119.44,119.4,18.64964886]
[1743644239096,0.063,119.44,119.4,22.9217378]
[1743644239503,0.063,119.44,119.4,18.64964886]
[1743644239700,0.063,119.44,119.39,29.3156]
[1743644240084,26.063,119.44,119.39,29.3156]
[1743644240286,26.063,119.44,119.4,18.64964886]
[1743644240591,26.063,119.44,119.41,8.3745]
[1743644240794,26.063,119.44,119.4,27.02454886]
[1743644241003,26.063,119.44,119.4,8.3749]
[1743644241577,26.063,119.44,119.41,8.84]
[1743644241778,0.063,119.44,119.41,8.84]
[1743644244881,0.063,119.44,119.43,27.02274886]
[1743644245989,0.063,119.44,119.43,27.44923357]
[1743644246204,0.063,119.44,119.43,34.55333357]
[1743644246495,0.063,119.46,119.44,0.42648471]
[1743644247019,0.063,119.46,119.45,45.07613357]
[1743644248116,0.063,119.46,119.45,53.44783357]
[1743644248711,0.063,119.46,119.45,53.02134886]
[1743644250214,0.063,119.46,119.44,8.3724]
[1743644251723,0.063,119.46,119.41,92.6046]
[1743644251900,0.063,119.46,119.41,81.9]
[1743644252109,0.063,119.46,119.42,27.02314886]
[1743644252602,0.063,119.46,119.42,47.95764886]
[1743644253225,0.063,119.46,119.42,27.02314886]
[1743644253715,0.063,119.46,119.42,8.3735]
[1743644254090,0.063,119.46,119.4,39.72841043]
[1743644254300,0.063,119.46,119.42,18.64964886]
[1743644256643,0.063,119.46,119.43,29.3058]
[1743644257634,0.063,119.46,119.44,18.64964886]
[1743644257922,0.063,119.46,119.45,0.42648471]
[1743644258127,0.063,119.46,119.44,27.46964886]
[1743644258699,0.063,119.46,119.45,27.02134886]
[1743644259226,0.063,119.46,119.45,8.3717]
[1743644260739,0.063,119.46,119.43,8.3731]
[1743644263825,0.063,119.46,119.42,334.7135]
[1743644264019,35.13136721,119.46,119.42,326.34]
[1743644264323,35.13136721,119.46,119.43,0.03]
[1743644264711,0.063,119.46,119.43,0.03]
[1743644267311,0.063,119.46,119.45,0.28432314]
[1743644267519,3.5844,119.51,119.44,8.96216157]
[1743644267728,3.5844,119.51,119.44,8.82]
[1743644267729,11.9521,119.51,119.44,8.82]
[1743644267929,21.84612241,119.5,119.44,17.1923]
[1743644268448,30.74391043,119.51,119.44,17.1923]
[1743644268449,94.0521,119.51,119.44,17.1923]
[1743644268735,115.89802241,119.51,119.44,17.1923]
[1743644269742,115.89802241,119.51,119.44,38.1233]
[1743644269923,94.0519,119.51,119.44,38.1233]
[1743644270123,115.89802241,119.51,119.44,38.1233]
[1743644270539,85.6844,119.51,119.44,38.1233]
[1743644270732,94.0519,119.51,119.44,38.1233]
[1743644271049,115.89802241,119.51,119.44,38.1233]
[1743644272233,94.0519,119.51,119.44,38.1233]
[1743644272435,115.89802241,119.51,119.44,38.1233]
[1743644273021,85.6844,119.51,119.44,38.1233]
[1743644273625,3.5844,119.51,119.45,18.64964886]
[1743644274339,0.063,119.51,119.45,18.64964886]
[1743644275426,0.063,119.51,119.46,8.371]
[1743644277533,0.063,119.51,119.45,29.2996]
[1743644277938,0.063,119.51,119.46,18.64964886]
[1743644278942,0.063,119.51,119.45,29.2996]
[1743644279540,0.063,119.51,119.46,30.0]
[1743644279746,21.90912241,119.51,119.46,30.0]
[1743644280118,0.063,119.51,119.46,30.0]
[1743644280946,3.4646,119.48,119.46,30.0]
[1743644281243,25.31072241,119.48,119.43,0.03]
[1743644281446,25.31072241,119.48,119.43,30.03]
[1743644282147,25.31072241,119.48,119.43,38.4028]
[1743644282828,3.4646,119.48,119.43,38.4028]
[1743644284225,25.31072241,119.48,119.43,38.4028]
[1743644284536,3.4646,119.48,119.43,38.4028]
[1743644285726,82.1,119.49,119.43,38.4028]
[1743644286249,82.1,119.49,119.43,59.3355]
[1743644287550,82.1,119.49,119.44,18.64964886]
[1743644287737,3.8456,119.51,119.45,30.0]
[1743644288448,3.8456,119.51,119.44,18.64964886]
[1743644289243,12.2131,119.51,119.44,18.64964886]
[1743644289546,116.15922241,119.51,119.45,8.3717]
[1743644289848,21.84612241,119.5,119.45,8.3717]
[1743644290851,30.21442241,119.5,119.43,29.3358]
[1743644291052,26.0,119.47,119.43,8.4031]
[1743644291236,21.84612241,119.49,119.43,0.03]
[1743644291237,25.53012241,119.45,119.43,0.03]
[1743644291434,25.53012241,119.45,119.43,30.03]
[1743644292044,111.48264886,119.49,119.43,30.03]